bitfinex-derivatives/quotes_ETHF0:USTF0_20240922
["timestamp","ask_amount","ask_price","bid_price","bid_amount"]
[1726974536562,3.65136,2598.9,2598.6,0.681]
[1726974537969,0.19236,2598.9,2598.6,0.681]
[1726974538168,3.65136,2598.9,2598.6,0.681]
[1726974538666,0.19236,2598.9,2598.6,0.681]
[1726974538867,3.65136,2598.9,2598.6,0.681]
[1726974539669,3.459,2598.9,2598.6,0.681]
[1726974540168,3.65136,2598.9,2598.6,0.9888]
[1726974540671,0.19236,2598.9,2598.6,0.9888]
[1726974540968,3.65136,2598.9,2598.6,0.9888]
[1726974541856,0.19236,2598.9,2598.6,0.9888]
[1726974542165,3.65136,2598.9,2598.6,0.9888]
[1726974543157,3.2078,2599.1,2598.6,0.9888]
[1726974543463,3.2078,2599.1,2598.8,0.19236]
[1726974543763,3.2078,2599.5,2598.9,10.5871]
[1726974544068,3.2078,2599.5,2599.4,0.19232]
[1726974544868,3.2078,2599.5,2599.3,0.19232]
[1726974545170,3.2078,2599.5,2599.4,0.5313]
[1726974545666,3.2078,2599.5,2599.4,0.72362]
[1726974545965,0.19233,2599.3,2599.1,1.0036701]
[1726974546163,1.0655,2599.2,2599.0,1.0036701]
[1726974546462,0.19234,2599.1,2598.8,5.6174701]
[1726974546663,0.19235,2599.0,2598.8,0.5118]
[1726974547658,0.19234,2599.1,2598.9,0.4441]
[1726974548266,7.04035,2599.0,2598.9,0.4441]
[1726974548469,3.19235,2599.0,2598.9,0.4441]
[1726974548659,7.04035,2599.0,2598.9,0.7519]
[1726974553377,13.04035,2599.0,2598.9,0.7519]
[1726974553677,13.04035,2599.0,2598.6,0.6156]
[1726974553678,0.19237,2598.7,2598.6,0.6156]
[1726974553877,6.40017,2598.7,2598.6,0.6156]
[1726974554074,16.24817,2598.7,2598.6,0.6156]
[1726974555470,10.24817,2598.7,2598.6,0.9234]
[1726974558875,16.7291,2598.7,2598.6,0.9234]
[1726974566378,10.24817,2598.7,2598.6,0.9234]
[1726974566689,19.81717,2598.7,2598.6,0.9234]
[1726974569983,19.81717,2598.7,2597.9,1.50281012]
[1726974569984,0.48104,2598.1,2597.9,1.50281012]
[1726974570195,0.19246,2597.6,2597.4,0.5699]
[1726974570483,7.54200494,2598.0,2597.0,2.00096935]
[1726974570484,6.2078,2597.5,2597.0,1.50281012]
[1726974570680,0.19247,2597.3,2597.2,0.5699]
[1726974571183,0.19248,2597.2,2597.1,0.5713]
[1726974571384,3.19249,2597.2,2597.0,0.5667]
[1726974571585,3.40029,2597.1,2597.0,0.5667]
[1726974571886,3.40029,2597.1,2597.0,1.4907]
[1726974572185,3.2078,2597.1,2597.0,1.4907]
[1726974572385,6.7768,2597.1,2597.0,1.4907]
[1726974573387,3.2078,2597.1,2597.0,1.4907]
[1726974573588,3.2078,2597.1,2597.0,5.3411]
[1726974575390,2.6300433,2597.1,2597.0,1.4907]
[1726974575785,2.6300433,2597.1,2597.0,5.5336]
[1726974575976,1.7510433,2597.1,2597.0,5.3411]
[1726974576988,1.7510433,2597.1,2597.0,1.4907]
[1726974577383,3.569,2597.2,2597.0,1.4907]
[1726974578686,3.2078,2597.3,2597.0,1.4907]
[1726974578888,3.367,2597.7,2597.1,3.8504]
[1726974579190,3.367,2597.7,2597.5,0.19246]
[1726974579382,3.40023,2598.0,2597.6,0.74095]
[1726974579583,3.367,2597.9,2597.6,0.74095]
[1726974579787,6.2078,2598.3,2597.7,0.19244]
[1726974580000,0.19242,2598.1,2597.6,3.94875]
[1726974580296,0.19242,2598.1,2597.7,0.19244]
[1726974580489,6.2078,2598.3,2597.6,3.7563]
[1726974580490,3.367,2598.2,2597.6,3.7563]
[1726974580788,3.0,2598.3,2597.6,3.7563]
[1726974580789,3.1924,2598.3,2597.6,3.7563]
[1726974580992,3.367,2598.2,2597.8,0.19243]
[1726974581192,3.0,2598.3,2597.9,3.2078]
[1726974581508,3.367,2598.3,2598.0,0.19242]
[1726974581990,3.367,2598.3,2598.1,0.5752]
[1726974582197,3.367,2598.3,2598.1,1.30861]
[1726974582791,3.367,2598.3,2598.1,1.1162]
[1726974583094,6.367,2598.3,2598.1,1.1162]
[1726974583689,3.0,2598.3,2598.1,1.1162]
[1726974584197,3.0,2598.3,2598.1,1.30861]
[1726974584384,3.0,2598.3,2598.1,1.1162]
[1726974585299,6.4002,2598.3,2598.1,1.1162]
[1726974585898,6.2078,2598.3,2598.1,1.1162]
[1726974586397,9.5748,2598.3,2598.1,1.1162]
[1726974587297,9.7672,2598.3,2598.1,1.1162]
[1726974588498,6.5594,2598.3,2598.1,1.1162]
[1726974588688,6.367,2598.3,2598.1,1.1162]
[1726974588993,6.5594,2598.3,2598.1,1.1162]
[1726974591400,6.5594,2598.3,2598.1,1.732]
[1726974592200,6.5594,2598.3,2598.1,1.191]
[1726974592201,6.367,2598.3,2598.1,1.191]
[1726974592502,0.19241,2598.2,2598.1,1.191]
[1726974592805,0.72971,2598.2,2598.1,1.191]
[1726974593000,1.25861,2598.2,2598.1,1.191]
[1726974596892,1.25861,2598.2,2598.1,0.6158]
[1726974596893,5.10741,2598.2,2598.1,0.6158]
[1726974597092,11.69841,2598.2,2598.1,0.6158]
[1726974597507,11.69841,2598.2,2598.1,0.9237]
[1726974598005,9.06541,2598.2,2598.1,0.9237]
[1726974598407,9.54644,2598.2,2598.1,0.9237]
[1726974598709,0.19243,2597.9,2597.7,0.5886]
[1726974599009,3.0,2597.8,2597.7,0.5886]
[1726974600506,3.0,2597.8,2597.7,1.5123]
[1726974602407,3.187,2597.9,2597.7,1.70474]
[1726974603209,3.187,2597.9,2597.7,1.5123]
[1726974603717,3.19242,2598.0,2597.7,1.5123]
[1726974603915,3.187,2597.9,2597.7,1.5123]
[1726974605117,3.187,2597.9,2597.7,1.70474]
[1726974606123,6.187,2598.0,2597.7,1.70474]
[1726974608916,6.187,2598.0,2597.7,1.5123]
[1726974609714,0.19244,2597.8,2597.7,1.5123]
[1726974610114,3.0,2597.8,2597.7,1.5123]
[1726974610922,3.19244,2597.8,2597.7,1.5123]
[1726974611216,3.19244,2597.8,2597.7,0.9237]
[1726974611217,16.24984,2597.8,2597.7,0.9237]
[1726974611802,16.73094,2597.8,2597.7,0.9237]
[1726974614614,13.43684,2597.8,2597.7,0.9237]
[1726974615016,0.19247,2597.4,2596.9,1.69531012]
[1726974615214,3.19247,2597.4,2597.0,6.33979965]
[1726974615417,3.187,2597.3,2597.0,4.8868]
[1726974615610,3.37947,2597.3,2597.0,4.8868]
[1726974616614,3.37947,2597.3,2597.0,5.1948]
[1726974616819,3.37947,2597.3,2597.0,5.8108]
[1726974617210,3.187,2597.3,2597.0,5.8108]
[1726974617412,3.37948,2597.3,2597.0,5.8108]
[1726974620109,3.187,2597.3,2597.0,5.8108]
[1726974620809,3.0,2597.4,2597.0,5.8108]
[1726974621010,3.0,2597.6,2597.1,1.45279916]
[1726974621328,3.0,2597.6,2597.2,0.19248]
[1726974621715,3.19246,2597.6,2597.1,1.69530012]
[1726974622021,3.19246,2597.6,2597.0,5.8108]
[1726974622022,3.0,2597.4,2597.0,5.8108]
[1726974622318,0.19247,2597.3,2597.0,5.8108]
[1726974622916,3.19247,2597.4,2597.0,5.8108]
[1726974623722,0.19248,2597.3,2597.0,5.8108]
[1726974624320,3.0,2597.4,2597.0,5.8108]
[1726974624321,3.19247,2597.4,2597.0,5.8108]
[1726974626522,0.19248,2597.3,2597.0,2.603]
[1726974626731,3.009,2597.2,2597.0,2.603]
[1726974629321,3.009,2597.3,2597.0,2.79549]
[1726974629515,0.19246,2597.5,2597.0,2.79549]
[1726974629716,3.009,2597.5,2597.1,0.19248]
[1726974629917,3.20146,2597.5,2597.1,0.19248]
[1726974633922,0.19247,2597.4,2597.0,2.48749]
[1726974634120,3.009,2597.4,2597.0,2.48749]
[1726974634325,3.0,2597.3,2597.0,2.295]
[1726974634522,0.19248,2597.2,2597.0,2.0583]
[1726974634726,3.75878,2597.2,2597.0,2.0583]
[1726974635029,3.5663,2597.2,2597.0,2.0583]
[1726974635222,0.19249,2597.1,2597.0,2.0583]
[1726974635524,3.5663,2597.2,2597.0,2.0583]
[1726974635718,3.75879,2597.2,2597.0,2.0583]
[1726974636724,3.5663,2597.2,2597.0,2.0583]
[1726974636939,3.75878,2597.2,2597.0,2.0583]
[1726974638227,6.5753,2597.2,2597.0,2.0583]
[1726974640527,6.76778,2597.2,2597.0,2.0583]
[1726974641035,3.75878,2597.2,2597.0,2.0583]
[1726974641234,6.76778,2597.2,2597.0,2.0583]
[1726974642036,1.39,2597.1,2597.0,2.0583]
[1726974642361,0.19247,2597.4,2597.0,3.51178782]
[1726974642528,4.399,2597.2,2597.1,1.45355852]
[1726974642728,4.399,2597.2,2597.0,3.25311012]
[1726974643145,1.39,2597.1,2597.0,3.25311012]
[1726974643438,1.39,2597.1,2597.0,4.7043956]
[1726974643631,1.39,2597.1,2597.0,4.8968956]
[1726974643829,1.39,2597.1,2597.0,4.7043956]
[1726974644438,1.39,2597.1,2597.0,5.0123956]
[1726974644636,1.39,2597.1,2597.0,5.2048956]
[1726974645432,1.39,2597.1,2597.0,5.0123956]
[1726974646435,0.75647,2597.4,2597.0,9.0552856]
[1726974646635,4.399,2597.3,2597.1,2.9540956]
[1726974646835,4.399,2597.3,2597.1,1.50281012]
[1726974648042,4.59148,2597.3,2597.1,1.50281012]
[1726974648245,1.58248,2597.3,2597.0,3.25311012]
[1726974648442,4.59148,2597.3,2597.1,1.45186076]
[1726974648744,4.59148,2597.3,2597.0,3.56111012]
[1726974648944,4.59148,2597.3,2597.1,1.45225088]
[1726974649145,4.59148,2597.3,2597.0,3.56111012]
[1726974649439,4.59148,2597.3,2597.1,1.45225051]
[1726974649646,4.59148,2597.3,2597.0,3.56111012]
[1726974649845,4.59148,2597.3,2597.1,1.45246891]
[1726974650047,4.59148,2597.3,2597.0,3.56111012]
[1726974650243,4.59148,2597.3,2597.1,2.95510736]
[1726974650540,4.59148,2597.3,2597.1,1.50281012]
[1726974651944,4.59148,2597.3,2597.2,1.45259763]
[1726974652242,4.59148,2597.3,2597.2,1.4525946]
[1726974652447,4.59148,2597.3,2597.2,2.95540472]
[1726974652637,4.399,2597.3,2597.2,2.95540472]
[1726974653235,4.399,2597.3,2597.2,3.26340472]
[1726974653745,3.2078,2597.8,2597.2,7.11380472]
[1726974653943,4.399,2597.6,2597.5,1.51241089]
[1726974654240,4.399,2597.6,2597.5,2.96500549]
[1726974654644,4.399,2597.6,2597.5,3.54860549]
[1726974655251,4.238,2597.8,2597.5,5.8857946]
[1726974655554,4.238,2597.8,2597.7,1.51228003]
[1726974655848,1.39,2597.8,2597.7,6.35950483]
[1726974656050,1.39,2598.0,2597.8,0.19244]
[1726974656249,1.39,2598.0,2597.9,3.46859984]
[1726974656551,1.39,2598.0,2597.9,6.36926966]
[1726974657554,3.2078,2598.4,2597.9,7.31739984]
[1726974657744,2.848,2598.8,2598.3,1.5101389]
[1726974657943,2.848,2598.8,2598.5,1.50955324]
[1726974657944,1.39,2598.7,2598.5,1.50955324]
[1726974658246,1.39,2598.7,2598.6,3.52075829]
[1726974658445,1.39,2598.7,2598.6,0.5582]
[1726974658749,1.58237,2598.7,2598.6,0.5582]
[1726974658977,1.58237,2598.7,2598.1,1.50955324]
[1726974658978,0.19239,2598.5,2598.1,1.50955324]
[1726974659251,1.39,2598.2,2598.1,0.19241]
[1726974659747,1.39,2598.2,2598.0,4.102]
[1726974659940,3.0,2598.2,2598.0,3.8488]
[1726974664950,3.0,2598.2,2597.9,4.51253]
[1726974665253,3.0,2598.2,2597.9,8.36133]
[1726974665757,3.0,2598.2,2597.9,4.51253]
[1726974666142,3.0,2598.2,2597.9,6.02208324]
[1726974666456,3.0,2598.2,2597.9,4.51253]
[1726974667456,3.0,2598.2,2598.0,0.19242]
[1726974667657,3.0,2598.2,2597.9,4.51253]
[1726974668452,3.0,2598.2,2597.9,3.766]
[1726974668453,3.19241,2598.2,2597.9,3.766]
[1726974668756,0.5359,2598.1,2597.9,4.3081]
[1726974669358,2.847,2598.3,2598.0,0.19242]
[1726974670144,2.847,2598.3,2598.1,0.19241]
[1726974670349,0.19236,2598.9,2598.5,0.19238]
[1726974670546,0.553,2598.9,2598.6,1.33457]
[1726974670751,0.553,2598.9,2598.7,0.19236]
[1726974670957,0.553,2598.9,2598.7,0.537]
[1726974671150,0.553,2598.9,2598.7,0.72937]
[1726974671353,0.553,2598.9,2598.7,0.8448]
[1726974671653,0.553,2598.9,2598.7,1.03717]
[1726974673252,2.847,2599.0,2598.7,1.03717]
[1726974673563,2.847,2599.0,2598.7,0.8448]
[1726974674890,3.5554,2599.2,2598.7,4.6928]
[1726974674891,0.5554,2599.2,2598.7,4.6928]
[1726974675161,3.0,2599.7,2598.9,3.2078]
[1726974675361,0.19231,2599.6,2599.1,0.19233]
[1726974675664,0.19231,2599.6,2599.2,1.83913]
[1726974676249,0.19231,2599.6,2599.2,5.04693]
[1726974676552,0.19231,2599.6,2599.2,1.83913]
[1726974676954,3.7477,2599.7,2599.3,0.19232]
[1726974677963,3.7477,2599.7,2599.2,5.04693]
[1726974678155,0.1923,2599.6,2599.2,5.04693]
[1726974679462,0.1923,2599.6,2599.2,1.83913]
[1726974679767,0.19231,2599.5,2599.2,1.6468]
[1726974680068,0.19232,2599.4,2599.2,0.5421]
[1726974680258,3.0,2599.5,2598.9,3.40015]
[1726974680567,0.19232,2599.4,2598.9,3.40015]
[1726974680761,3.0,2599.5,2598.9,3.2078]
[1726974680960,3.0,2599.2,2599.0,0.3078]
[1726974681164,0.5598,2599.1,2599.0,0.3078]
[1726974682755,0.75214,2599.1,2599.0,0.3078]
[1726974683865,0.5598,2599.1,2599.0,0.3078]
[1726974685667,0.75214,2599.1,2599.0,0.3078]
[1726974686168,1.29184,2599.1,2599.0,0.3078]
[1726974686969,1.29184,2599.1,2599.0,0.6156]
[1726974691970,4.01684,2599.1,2599.0,0.6156]
[1726974693569,1.29184,2599.1,2599.0,0.6156]
[1726974693772,4.01684,2599.1,2599.0,0.6156]
[1726974693970,5.40684,2599.1,2599.0,0.6156]
[1726974696064,3.2848,2599.1,2599.0,0.6156]
[1726974696369,4.86714,2599.1,2599.0,0.6156]
[1726974698880,8.71434,2599.1,2599.0,0.6156]
[1726974699066,4.86714,2599.1,2599.0,0.6156]
[1726974699870,4.86714,2599.1,2599.0,0.9234]
[1726974703264,2.725,2599.1,2599.0,0.9234]
[1726974703468,1.39,2599.3,2599.0,0.9234]
[1726974703673,2.725,2599.5,2599.2,0.19233]
[1726974704168,1.5823,2599.7,2599.3,0.19233]
[1726974704482,2.725,2599.6,2599.3,1.19162902]
[1726974704776,2.725,2599.6,2599.3,0.99929902]
[1726974705567,2.725,2599.6,2599.4,0.6154]
[1726974705979,1.58231,2599.5,2599.4,0.6154]
[1726974706166,5.96871,2599.5,2599.4,0.6154]
[1726974706367,6.53791,2599.5,2599.4,0.6154]
[1726974707978,8.14791,2599.5,2599.4,0.6154]
[1726974711066,7.57871,2599.5,2599.4,0.6154]
[1726974712181,14.05949,2599.5,2599.4,0.6154]
[1726974717475,17.26729,2599.5,2599.4,0.6154]
[1726974718482,11.26729,2599.5,2599.4,0.6154]
[1726974725782,10.78651,2599.5,2599.4,0.6154]
[1726974728087,9.17651,2599.5,2599.4,0.6154]
[1726974728693,9.17651,2599.5,2599.4,0.9231]
[1726974732795,9.65729,2599.5,2599.4,0.9231]
[1726974734481,9.65729,2599.5,2598.8,2.63589479]
[1726974734482,0.19236,2598.9,2598.8,0.6203]
[1726974734692,7.41916,2598.9,2598.8,1.219]
[1726974734887,11.26716,2598.9,2598.8,1.219]
[1726974736192,11.74806,2598.9,2598.8,1.7888]
[1726974736396,11.74806,2598.9,2598.8,1.1685]
[1726974737688,11.26716,2598.9,2598.8,1.1685]
[1726974737891,4.79016,2598.9,2598.8,1.1685]
[1726974738092,3.40014,2599.2,2598.8,5.0165]
[1726974738285,2.629,2599.0,2598.9,0.5878]
[1726974738994,4.21135,2599.0,2598.9,0.5878]
[1726974740693,8.05935,2599.0,2598.9,0.5878]
[1726974740881,4.21135,2599.0,2598.9,0.5878]
[1726974741082,8.05935,2599.0,2598.9,0.5878]
[1726974742597,4.21135,2599.0,2598.9,0.5878]
[1726974746002,3.2078,2599.2,2598.9,0.5878]
[1726974746203,3.2078,2599.2,2598.9,1.58709902]
[1726974746204,2.629,2599.1,2598.9,1.58709902]
[1726974746408,4.019,2599.1,2598.9,1.58709902]
[1726974749501,4.019,2599.1,2598.9,0.5878]
[1726974752117,4.21134,2599.1,2598.9,0.5878]
[1726974753113,4.019,2599.1,2598.9,0.5878]
[1726974754207,4.21134,2599.1,2598.9,0.5878]
[1726974754506,4.019,2599.1,2598.8,1.1685]
[1726974754716,1.39,2598.9,2598.8,1.1685]
[1726974755102,1.58236,2598.9,2598.8,1.1685]
[1726974756308,4.79016,2598.9,2598.8,0.5698]
[1726974756512,8.63816,2598.9,2598.8,0.5698]
[1726974763009,4.79016,2598.9,2598.8,0.5698]
[1726974764319,3.40016,2598.9,2598.8,0.5698]
[1726974764617,4.21136,2598.9,2598.8,0.5698]
[1726974768218,7.41916,2598.9,2598.8,0.5698]
[1726974773518,11.26716,2598.9,2598.2,0.6287]
[1726974773717,1.39,2598.3,2597.8,0.99929902]
[1726974774020,1.39,2598.0,2597.8,1.2031]
[1726974775127,1.39,2598.0,2597.9,0.5824]
[1726974775327,1.39,2598.0,2597.9,0.6002]
[1726974779834,4.017,2598.0,2597.9,0.6002]
[1726974780328,2.70021,2598.3,2597.9,0.6002]
[1726974780525,2.01849733,2602.0,2600.9,3.2078]
[1726974780718,2.01849733,2602.0,2598.0,29.58788273]
[1726974780719,1.94703656,2602.8,2601.9,4.5978]
[1726974780922,1.39,2602.7,2602.5,1.00289999]
[1726974781118,2.95103656,2602.8,2602.5,1.00289999]
[1726974781323,1.56103656,2602.8,2602.7,3.2078]
[1726974781517,1.56103656,2602.8,2602.4,3.2078]
[1726974781518,2.95103656,2602.8,2602.4,3.2078]
[1726974782329,1.56103656,2602.8,2602.4,3.2078]
[1726974782628,2.95103656,2602.8,2602.4,3.2078]
[1726974783130,2.95103656,2602.8,2602.7,3.2078]
[1726974783426,2.95103656,2602.8,2602.4,3.2078]
[1726974783929,1.56103656,2602.8,2602.7,3.2078]
[1726974790431,1.56103656,2602.8,2602.4,3.2078]
[1726974790732,3.0,2602.5,2602.4,3.2078]
[1726974791330,3.0,2602.5,2602.0,3.2078]
[1726974791331,8.40343656,2602.5,2602.0,3.2078]
[1726974791539,3.0,2602.2,2601.7,3.2078]
[1726974791841,3.0,2601.8,2601.7,3.2078]
[1726974792429,4.56103656,2601.8,2601.7,3.2078]
[1726974793136,4.56103656,2601.8,2601.7,3.2256]
[1726974793432,8.59637656,2601.8,2601.7,0.0178]
[1726974793636,12.22337656,2601.8,2601.7,0.0178]
[1726974793831,12.03123656,2601.8,2601.7,0.0178]
[1726974794337,12.22337656,2601.8,2601.7,0.0178]
[1726974795035,0.19216,2601.6,2601.4,3.2078]
[1726974795244,3.0,2601.5,2601.4,3.2078]
[1726974795635,4.56103656,2601.5,2601.4,3.2078]
[1726974797440,4.75319656,2601.5,2601.4,3.2078]
[1726974798147,4.56103656,2601.5,2601.4,3.2078]
[1726974798844,4.56103656,2601.5,2601.1,3.2078]
[1726974799144,4.75320656,2601.5,2601.1,3.2078]
[1726974799537,0.19217,2601.4,2601.1,3.2078]
[1726974800039,1.75320656,2601.4,2601.1,3.2078]
[1726974801938,0.19218,2601.3,2601.1,3.2078]
[1726974802342,3.0,2601.2,2601.1,3.2078]
[1726974802745,1.56103656,2601.2,2601.1,3.2078]
[1726974807051,1.56103656,2601.2,2601.1,3.1078]
[1726974808150,8.38022656,2601.2,2601.1,3.1078]
[1726974808744,0.19219,2601.1,2600.8,3.2078]
[1726974809142,1.75322656,2601.1,2600.8,3.2078]
[1726974809851,1.56103656,2601.1,2600.8,3.2078]
[1726974812136,1.75322656,2601.1,2600.8,3.2078]
[1726974813260,0.699,2601.0,2600.8,3.2078]
[1726974813643,2.26003656,2601.0,2600.8,3.2078]
[1726974815140,2.45223656,2601.0,2600.8,3.2078]
[1726974815746,2.26003656,2601.0,2600.8,3.2078]
[1726974818250,2.45223656,2601.0,2600.8,3.2078]
[1726974818445,2.26003656,2601.0,2600.8,3.2078]
[1726974818751,0.19223,2600.7,2600.5,3.2078]
[1726974818956,3.0,2600.6,2600.5,3.2078]
[1726974819343,4.56103656,2600.6,2600.5,3.2078]
[1726974820350,4.75327656,2600.6,2600.3,4.102]
[1726974820652,4.75327656,2600.6,2600.1,3.2078]
[1726974820849,0.699,2600.4,2600.1,3.2078]
[1726974822847,0.89125,2600.4,2600.1,3.2078]
[1726974823048,0.699,2600.4,2600.1,3.2078]
[1726974824157,0.89124,2600.4,2600.1,3.2078]
[1726974826076,0.19225,2600.3,2600.1,3.2078]
[1726974826361,0.19226,2600.3,2600.1,3.2078]
[1726974826661,0.19226,2600.3,2600.1,7.0534]
[1726974830657,0.19226,2600.3,2600.2,3.8456]
[1726974830856,0.699,2600.4,2600.1,3.2078]
[1726974830857,0.19226,2600.2,2600.1,3.2078]
[1726974831060,2.26003656,2600.4,2600.1,3.2078]
[1726974831263,0.19225,2600.3,2600.1,3.2078]
[1726974831573,0.19226,2600.2,2600.1,3.2078]
[1726974831863,0.19225,2600.3,2600.1,3.2078]
[1726974832066,2.26003656,2600.4,2600.1,3.2078]
[1726974832067,0.19226,2600.2,2600.1,3.2078]
[1726974832260,0.19226,2600.2,2599.8,4.21069999]
[1726974832463,1.75329656,2600.2,2599.8,4.21069999]
[1726974832963,1.75329656,2600.2,2600.1,3.2078]
[1726974836775,1.56103656,2600.2,2600.1,3.2078]
[1726974836966,2.45229656,2600.2,2600.1,3.2078]
[1726974837274,2.45229656,2600.2,2600.1,4.21069999]
[1726974837467,2.26003656,2600.2,2600.1,4.21069999]
[1726974837868,2.26003656,2600.2,2600.1,1.00289999]
[1726974838170,2.26003656,2600.2,2600.1,4.21069999]
[1726974838478,2.45229656,2600.2,2600.1,1.00289999]
[1726974839375,2.26003656,2600.2,2600.1,2.59973796]
[1726974840267,2.26003656,2600.2,2600.1,6.30898796]
[1726974840467,1.68292625,2600.2,2600.1,6.30898796]
[1726974840677,1.68292625,2600.2,2600.1,6.30915268]
[1726974844472,1.68292625,2600.2,2600.1,6.30716676]
[1726974848078,1.08268,2600.6,2600.1,6.30716676]
[1726974848079,6.872,2602.5,2600.2,3.8456]
[1726974848280,1.1695,2601.8,2601.4,3.2078]
[1726974848479,1.1695,2601.8,2601.4,4.21245283]
[1726974848696,1.55802625,2601.8,2601.7,3.2078]
[1726974848985,1.55802625,2601.8,2601.7,4.80113002]
[1726974849294,1.55802625,2601.8,2601.7,4.21060959]
[1726974849581,1.75016625,2601.8,2601.7,4.21060959]
[1726974849781,1.55802625,2601.8,2601.7,4.21060959]
[1726974849975,1.55802625,2601.8,2601.6,1.00280959]
[1726974850568,1.55802625,2601.8,2601.7,3.2078]
[1726974853376,1.75016625,2601.8,2601.7,3.2078]
[1726974853578,4.75016625,2601.8,2601.7,3.2078]
[1726974854879,1.75016625,2601.8,2601.7,3.2078]
[1726974856079,5.59336625,2601.8,2601.7,3.2078]
[1726974856284,5.59336625,2601.8,2601.3,3.2078]
[1726974856285,0.19215,2601.7,2601.3,3.2078]
[1726974856483,1.55802625,2601.8,2601.3,3.2078]
[1726974856687,0.19215,2601.7,2601.3,3.2078]
[1726974857194,0.98392625,2601.7,2601.3,3.2078]
[1726974857484,1.17607625,2601.7,2601.3,3.2078]
[1726974858475,0.19216,2601.6,2601.3,3.2078]
[1726974858673,1.17607625,2601.7,2601.3,3.2078]
[1726974862280,0.19216,2601.6,2601.3,3.2078]
[1726974862785,3.98392625,2601.6,2601.3,3.2078]
[1726974862989,0.19217,2601.5,2601.3,3.2078]
[1726974863490,1.17609625,2601.5,2601.3,3.2078]
[1726974866792,0.19217,2601.4,2601.3,3.2078]
[1726974866992,3.19217,2601.4,2601.3,3.2078]
[1726974867187,4.17609625,2601.4,2601.3,3.2078]
[1726974869297,4.6456,2601.8,2601.3,3.2078]
[1726974869298,5.7103829,2602.9,2601.3,3.2078]
[1726974869598,5.66155305,2608.8,2601.9,4.477]
[1726974869795,6.33895306,2612.9,2601.4,4.44463413]
[1726974869796,0.1913,2613.3,2610.9,0.19147]
[1726974869993,9.54094,2619.9,2607.5,11.524]
[1726974869994,3.2078,2614.2,2613.2,2.443]
[1726974870193,12.8218,2615.4,2611.7,0.3824]
[1726974870492,12.8218,2615.4,2610.6,0.9884629]
[1726974870493,9.83418,2612.3,2611.5,3.2078]
[1726974870691,0.06077821,2615.3,2610.5,0.95788224]
[1726974870692,3.2078,2613.7,2610.5,0.95788224]
[1726974870891,3.2078,2611.9,2611.2,3.2078]
[1726974871095,3.2078,2611.9,2610.5,0.95788224]
[1726974871096,8.78862,2610.6,2610.5,0.95788224]
[1726974871287,3.0,2610.3,2609.8,3.2078]
[1726974871491,3.0,2610.3,2606.9,2.47115726]
[1726974871492,6.2078,2609.9,2608.5,3.2078]
[1726974871691,3.2078,2610.4,2608.6,3.2078]
[1726974871895,4.14,2610.5,2609.4,3.2078]
[1726974872090,6.78768135,2610.0,2609.8,3.2078]
[1726974872393,6.78768135,2610.2,2609.8,3.2078]
[1726974872585,6.78768135,2609.9,2609.8,3.2078]
[1726974872791,6.78768135,2609.9,2609.5,3.2078]
[1726974872990,6.78768135,2609.9,2609.5,2.2519]
[1726974872991,6.78768135,2609.6,2609.5,2.2519]
[1726974873196,6.78768135,2609.6,2609.0,3.2078]
[1726974873395,3.2078,2610.8,2609.3,3.2078]
[1726974873594,6.78768135,2609.9,2609.1,4.41261704]
[1726974873791,6.78768135,2609.9,2607.8,4.14]
[1726974873792,6.78768135,2609.8,2609.5,3.2078]
[1726974874594,6.78768135,2609.7,2609.5,3.2078]
[1726974875191,4.14,2610.7,2609.5,3.2078]
[1726974875386,4.14,2610.7,2610.1,3.2078]
[1726974875387,26.51645327,2610.7,2610.1,3.2078]
[1726974875588,3.39927,2610.9,2610.1,3.2078]
[1726974875589,3.2078,2610.9,2610.1,3.2078]
[1726974875894,6.78768135,2610.2,2610.1,3.2078]
[1726974876203,6.78768135,2610.2,2607.8,4.14]
[1726974876204,6.78768135,2610.2,2609.6,3.2078]
[1726974876394,6.78768135,2609.7,2609.6,3.2078]
[1726974876792,29.16413462,2609.7,2609.6,3.2078]
[1726974877197,29.16413462,2609.7,2609.3,3.2078]
[1726974877601,3.2078,2610.4,2609.6,3.2078]
[1726974877899,6.78768135,2610.0,2609.6,3.2078]
[1726974878395,6.78768135,2609.8,2609.6,3.2078]
[1726974878596,6.78768135,2609.7,2609.6,3.2078]
[1726974879105,29.16413462,2609.7,2609.6,3.2078]
[1726974879494,39.30413462,2609.7,2609.0,3.2078]
[1726974879809,6.78768135,2609.1,2609.0,3.2078]
[1726974882203,29.16413462,2609.1,2608.4,3.2078]
[1726974882395,6.78768135,2608.6,2607.6,4.63354723]
[1726974882701,6.78768135,2608.6,2608.5,3.2078]
[1726974882907,29.16413462,2608.6,2608.5,3.2078]
[1726974883096,6.78768135,2608.6,2608.5,3.2078]
[1726974884294,2.95240549,2608.6,2608.5,3.2078]
[1726974884703,4.14,2609.7,2608.5,7.0414]
[1726974884897,35.17325327,2609.8,2609.1,3.2078]
[1726974885202,0.1916,2609.2,2608.5,3.2078]
[1726974885499,0.19161,2609.1,2608.5,3.2078]
[1726974885694,25.58425327,2609.3,2608.5,3.2078]
[1726974886495,0.19162,2608.9,2608.5,3.2078]
[1726974886901,22.37645327,2608.9,2608.5,3.2078]
[1726974887296,4.14,2608.7,2607.9,3.2078]
[1726974887492,4.33164,2608.7,2607.9,3.2078]
[1726974887697,26.51645327,2608.7,2607.9,3.2078]
[1726974887895,4.14,2608.3,2607.9,0.291]
[1726974888204,3.8344,2608.0,2607.5,3.2078]